bitfinex/quotes_ETHUSD_20240816
["timestamp","ask_amount","ask_price","bid_price","bid_amount"]
[1723783324669,2.2613,2594.0,2593.7,2.31325]
[1723783324867,2.2613,2594.0,2593.8,0.55]
[1723783325180,1.62299477,2593.9,2593.3,2.31359]
[1723783325371,3.66585672,2593.9,2593.8,35.0]
[1723783325556,2.54733658,2593.9,2593.8,35.0]
[1723783325759,3.88433658,2593.9,2593.8,35.0]
[1723783326170,6.19744658,2593.9,2593.8,35.0]
[1723783326994,6.19744658,2593.9,2593.1,2.31376]
[1723783326995,2.3689,2593.7,2593.1,2.31376]
[1723783327177,0.28618147,2593.6,2593.2,2.86367]
[1723783327377,0.21847986,2593.5,2593.4,35.0]
[1723783327760,0.28618147,2593.5,2593.4,35.0]
[1723783329407,0.06770161,2593.5,2593.4,35.0]
[1723783329590,2.49629001,2593.5,2593.4,35.0]
[1723783329796,2.34550161,2593.5,2593.4,35.0]
[1723783329967,2.56400755,2593.5,2593.4,35.0]
[1723783330901,0.06770161,2593.5,2593.4,37.31356]
[1723783331106,0.06770161,2593.5,2593.4,37.86356]
[1723783331305,0.21847206,2593.7,2593.5,2.31347]
[1723783331515,0.21847206,2593.6,2593.5,2.31347]
[1723783331720,0.21847206,2593.6,2593.5,2.86347]
[1723783332415,0.28370718,2593.6,2593.5,2.86347]
[1723783334069,0.28369593,2593.6,2593.5,2.86347]
[1723783335275,0.28369593,2593.6,2593.5,5.17694]
[1723783335481,0.06523512,2593.6,2593.5,2.86347]
[1723783335724,0.21844217,2593.6,2593.5,2.86347]
[1723783336072,0.06526978,2593.6,2593.5,2.86347]
[1723783336280,0.28371195,2593.6,2593.5,2.86347]
[1723783336490,0.21844217,2593.6,2593.5,2.86347]
[1723783336749,0.28371195,2593.6,2593.5,2.86347]
[1723783339012,2.55251195,2593.6,2593.5,2.86347]
[1723783342520,0.28371195,2593.6,2593.5,2.31347]
[1723783344458,0.28371195,2593.6,2593.4,35.0]
[1723783344664,0.21844217,2593.5,2593.4,35.0]
[1723783345162,0.28376864,2593.5,2593.4,35.0]
[1723783347161,0.28376864,2593.5,2593.4,37.31356]
[1723783347817,0.28376864,2593.5,2593.4,39.62712]
[1723783348030,0.28376864,2593.5,2593.4,40.17712]
[1723783350850,0.06532647,2593.5,2593.4,40.17712]
[1723783351054,0.28379902,2593.5,2593.4,40.17712]
[1723783354951,0.06532647,2593.5,2593.4,40.17712]
[1723783355284,0.21845813,2593.5,2593.4,40.17712]
[1723783355515,0.06313673,2593.5,2593.4,40.17712]
[1723783355784,0.2815945,2593.5,2593.4,40.17712]
[1723783359497,7.67902311,2593.5,2593.4,35.0]
[1723783359698,4.97313381,2593.5,2593.0,2.31384]
[1723783359910,3.92425479,2593.4,2593.1,2.31377]
[1723783360197,0.21845777,2593.3,2593.2,37.31372]
[1723783360502,0.28157877,2593.3,2593.2,37.31372]
[1723783361198,0.28157877,2593.3,2593.2,37.86372]
[1723783361608,0.21845777,2593.3,2593.2,37.86372]
[1723783361772,0.28157877,2593.3,2593.2,37.86372]
[1723783363196,0.063121,2593.3,2593.2,37.86372]
[1723783363404,0.21850844,2593.3,2593.2,37.86372]
[1723783363571,0.28162944,2593.3,2593.2,37.86372]
[1723783363908,0.28162944,2593.3,2593.2,35.0]
[1723783367694,0.063121,2593.3,2593.2,35.0]
[1723783368014,0.28165793,2593.3,2593.2,35.0]
[1723783369569,0.28165793,2593.3,2593.2,37.31374]
[1723783370737,0.28165793,2593.3,2593.2,35.0]
[1723783371324,2.56765793,2593.3,2593.2,35.0]
[1723783371506,2.349121,2593.3,2593.2,35.0]
[1723783371842,2.56765874,2593.3,2593.2,35.0]
[1723783374238,2.56765874,2593.3,2592.7,2.31415]
[1723783374239,2.56765874,2593.3,2592.7,2.31411]
[1723783374443,1.337,2593.0,2592.7,2.31411]
[1723783374616,0.28036328,2592.9,2592.7,2.31411]
[1723783374821,0.21853774,2592.8,2592.7,2.31411]
[1723783375208,0.28036328,2592.8,2592.7,35.0]
[1723783375444,0.28036328,2592.8,2592.7,35.55]
[1723783375824,0.28036328,2592.8,2592.7,37.86418]
[1723783376221,0.28036328,2592.8,2592.7,40.17836]
[1723783376422,0.28036328,2592.8,2592.7,42.46096]
[1723783376423,0.06182554,2592.8,2592.7,42.46096]
[1723783376732,1.337,2593.2,2592.9,2.31394]
[1723783376932,0.2185538,2593.1,2593.0,0.55]
[1723783377120,0.2185538,2593.1,2592.8,2.31407]
[1723783377320,0.2185538,2593.0,2592.8,2.31407]
[1723783377508,0.2185538,2592.9,2592.8,2.31407]
[1723783377732,0.2185538,2592.9,2592.8,0.55]
[1723783377942,2.5412538,2593.1,2592.8,0.55]
[1723783378170,0.2185538,2593.0,2592.8,0.55]
[1723783378372,0.2185538,2592.9,2592.8,0.55]
[1723783378538,0.2185538,2593.0,2592.8,0.55]
[1723783378869,0.2185538,2592.9,2592.8,0.55]
[1723783379071,0.2185538,2592.9,2592.7,37.31412]
[1723783379371,0.2185538,2592.8,2592.7,37.31412]
[1723783379671,0.21858799,2592.9,2592.7,37.86412]
[1723783379872,1.337,2593.0,2592.7,37.86412]
[1723783379873,0.21858799,2592.8,2592.7,37.86412]
[1723783380547,1.337,2593.0,2592.7,37.86412]
[1723783380760,1.337,2592.8,2592.7,35.0]
[1723783380967,1.55558396,2592.8,2592.7,35.0]
[1723783381168,3.93198396,2592.8,2592.7,35.0]
[1723783381372,6.87067536,2592.8,2592.7,35.0]
[1723783381554,6.87067536,2592.8,2592.1,2.31469]
[1723783381555,2.3764,2592.7,2592.1,2.31469]
[1723783381895,1.337,2592.4,2592.1,4.62935]
[1723783382080,1.337,2592.4,2592.3,35.0]
[1723783382295,3.9320711,2592.4,2592.0,1.08043277]
[1723783382504,1.337,2592.2,2591.9,2.31483]
[1723783382794,1.337,2592.4,2592.2,2.31457]
[1723783383989,0.21868409,2592.3,2592.1,37.31472]
[1723783384204,1.337,2592.4,2592.2,0.55]
[1723783384484,0.21869129,2592.3,2592.2,0.55]
[1723783384660,2.51279129,2592.3,2592.2,0.55]
[1723783385315,0.21869129,2592.3,2592.2,0.55]
[1723783385609,1.337,2592.4,2592.2,2.86463]
[1723783386321,2.2941,2592.5,2592.2,2.86463]
[1723783386537,1.337,2592.6,2592.2,2.86463]
[1723783386875,0.21867429,2592.5,2592.2,2.86463]
[1723783387096,1.337,2592.6,2592.2,2.86463]
[1723783387306,0.218675,2592.5,2592.2,2.86463]
[1723783387484,1.337,2592.6,2592.2,2.86463]
[1723783387823,0.21867495,2592.5,2592.2,2.86463]
[1723783388025,1.337,2592.6,2592.2,2.86463]
[1723783388330,0.21867313,2592.5,2592.3,35.0]
[1723783388480,1.337,2592.6,2592.3,35.0]
[1723783388827,0.21867162,2592.5,2592.3,35.0]
[1723783388990,1.337,2592.6,2592.3,35.0]
[1723783389195,0.21867123,2592.5,2592.3,35.0]
[1723783389489,1.337,2592.6,2592.3,35.0]
[1723783389828,0.21867165,2592.5,2592.3,35.0]
[1723783390021,0.27998359,2592.5,2592.3,35.0]
[1723783390192,0.21867165,2592.4,2592.3,35.0]
[1723783390690,0.06131194,2592.4,2592.3,35.0]
[1723783391088,1.337,2592.6,2592.3,35.0]
[1723783391289,0.06131194,2592.4,2592.3,35.0]
[1723783391474,1.337,2592.6,2592.3,35.0]
[1723783391788,0.06131194,2592.4,2592.3,35.0]
[1723783392505,1.337,2592.6,2592.3,35.0]
[1723783392825,0.06131194,2592.4,2592.3,35.0]
[1723783392991,1.337,2592.6,2592.3,35.0]
[1723783393219,0.21868571,2592.5,2592.3,35.0]
[1723783393426,0.06133084,2592.4,2592.3,35.0]
[1723783393629,1.337,2592.6,2592.3,35.0]
[1723783393630,0.21866888,2592.5,2592.3,35.0]
[1723783393847,0.06133084,2592.4,2592.3,35.0]
[1723783394147,1.337,2592.6,2592.3,35.0]
[1723783394326,0.06133084,2592.4,2592.3,35.0]
[1723783394816,1.337,2592.6,2592.3,35.0]
[1723783395016,0.27999761,2592.5,2592.3,35.0]
[1723783395311,0.06133084,2592.5,2592.3,35.0]
[1723783395717,0.21868307,2592.4,2592.3,35.0]
[1723783396456,0.28001391,2592.4,2592.3,35.0]
[1723783397025,0.06133084,2592.4,2592.3,35.0]
[1723783397225,1.337,2592.6,2592.3,35.0]
[1723783397531,0.28000054,2592.5,2592.3,35.0]
[1723783397871,0.06133084,2592.5,2592.3,35.0]
[1723783398341,0.21866876,2592.4,2592.3,35.0]
[1723783398962,1.61701286,2592.4,2592.3,35.0]
[1723783399950,4.00361286,2592.4,2592.3,35.0]
[1723783400526,3.78493084,2592.4,2592.3,35.0]
[1723783401349,4.00362649,2592.4,2592.3,35.0]
[1723783402351,1.61702649,2592.4,2592.3,35.0]
[1723783403525,1.61702572,2592.4,2592.3,35.0]
[1723783405741,6.24517572,2592.4,2592.3,35.0]
[1723783405931,7.47184209,2592.4,2592.3,35.0]
[1723783407649,7.25314721,2592.4,2592.3,35.0]
[1723783407940,7.47187081,2592.4,2592.3,35.0]
[1723783408878,7.47187081,2592.4,2591.8,2.31495]
[1723783409067,0.2187236,2592.3,2591.8,2.31495]
[1723783409264,7.25314721,2592.4,2591.9,35.0]
[1723783409265,0.28000084,2592.2,2591.9,35.0]
[1723783409593,0.2187236,2592.1,2591.9,35.0]
[1723783409795,0.2187236,2592.0,2591.9,35.0]
[1723783410106,0.28000084,2592.0,2591.9,35.0]
[1723783411875,0.06127724,2592.0,2591.9,35.0]
[1723783412076,0.21872297,2592.0,2591.9,35.0]
[1723783412272,0.28000021,2592.0,2591.9,35.0]
[1723783414463,2.68160021,2592.0,2591.9,35.0]
[1723783414889,4.01860021,2592.0,2591.9,35.0]
[1723783415896,4.0186536,2592.0,2591.9,35.0]
[1723783417502,4.0186536,2592.0,2591.4,5.95604342]
[1723783417706,0.21877636,2591.9,2591.5,0.55]
[1723783417901,0.21877636,2591.8,2591.6,35.0]
[1723783418112,0.21877636,2591.7,2591.6,35.0]
[1723783418787,0.27975097,2591.7,2591.6,35.0]
[1723783419186,2.65105097,2591.7,2591.6,35.0]
[1723783419393,5.59643607,2591.7,2591.6,35.0]
[1723783419591,5.59643607,2591.7,2591.0,2.31564]
[1723783419905,1.337,2591.3,2591.0,2.31564]
[1723783420119,0.21877636,2591.2,2591.1,35.0]
[1723783420323,0.06095568,2591.2,2591.1,35.0]
[1723783420825,2.3713,2591.4,2591.1,37.3156]
[1723783421018,0.060716,2591.2,2591.1,37.3156]
[1723783421200,2.3713,2591.4,2591.1,37.8656]
[1723783421406,0.060716,2591.2,2591.1,37.8656]
[1723783421899,2.3713,2591.4,2591.1,37.8656]
[1723783422233,0.060716,2591.3,2591.1,37.8656]
[1723783422650,7.40320682,2591.8,2591.2,2.31551]
[1723783422808,7.40320682,2591.8,2591.4,4.80514]
[1723783422809,0.21879486,2591.7,2591.4,4.80514]
[1723783423137,7.40320682,2591.8,2591.4,4.80514]
[1723783423138,0.21879486,2591.6,2591.4,4.80514]
[1723783423303,7.40320682,2591.8,2591.5,35.0]
[1723783423511,0.21879905,2591.7,2591.5,35.0]
[1723783423832,0.21879905,2591.6,2591.5,35.0]
[1723783424244,1.337,2591.6,2591.5,35.0]
[1723783424548,1.55579905,2591.6,2591.5,35.0]
[1723783427325,1.55579905,2591.6,2591.2,2.31551]
[1723783427533,1.337,2591.6,2591.2,2.31551]
[1723783427736,1.337,2591.6,2591.3,35.0]
[1723783427737,0.21883515,2591.5,2591.3,35.0]
[1723783428030,1.337,2591.6,2591.3,35.0]
[1723783428352,0.21883509,2591.5,2591.3,35.0]
[1723783428510,1.337,2591.6,2591.3,35.0]
[1723783428718,0.21883506,2591.5,2591.3,35.0]
[1723783429038,1.337,2591.6,2591.3,35.0]
[1723783429240,0.21883709,2591.5,2591.3,35.0]
[1723783429408,1.337,2591.6,2591.3,35.0]
[1723783429615,0.218837,2591.5,2591.3,35.0]
[1723783429868,1.337,2591.6,2591.3,35.0]
[1723783430013,0.21883986,2591.5,2591.3,35.0]
[1723783430218,1.337,2591.6,2591.3,35.0]
[1723783430460,0.21884031,2591.5,2591.3,35.0]
[1723783430675,0.21884478,2591.5,2591.3,35.0]
[1723783430814,1.337,2591.6,2591.3,35.0]
[1723783431015,0.21884016,2591.5,2591.3,35.0]
[1723783431214,1.337,2591.6,2591.3,35.0]
[1723783431416,0.21883997,2591.5,2591.3,35.0]
[1723783431662,1.337,2591.6,2591.3,35.0]
[1723783431861,0.21884042,2591.5,2591.3,37.31543]
[1723783432064,1.337,2591.6,2591.3,37.31543]
[1723783432369,0.21883021,2591.5,2591.3,37.31543]
[1723783432547,1.337,2591.8,2591.3,37.31543]
[1723783432748,0.21882754,2591.7,2591.3,37.31543]
[1723783432924,0.21882754,2591.6,2591.3,37.31543]
[1723783433124,0.21882754,2591.5,2591.3,37.31543]
[1723783433375,1.337,2591.8,2591.3,37.31543]
[1723783433563,0.21882636,2591.7,2591.3,37.31543]
[1723783433872,0.21882636,2591.6,2591.3,37.31543]
[1723783434029,0.21882636,2591.5,2591.3,37.31543]
[1723783434234,1.337,2591.8,2591.3,37.31543]
[1723783434445,0.21882914,2591.7,2591.3,37.31543]
[1723783434761,0.21882914,2591.6,2591.3,37.31543]
[1723783434970,0.21882914,2591.5,2591.3,37.31543]
[1723783435619,0.06062138,2591.4,2591.3,37.31543]
[1723783436042,1.337,2591.8,2591.3,37.31543]
[1723783436526,0.27944788,2591.7,2591.3,37.31543]
[1723783436751,0.2188265,2591.6,2591.3,37.31543]
[1723783437493,0.27944788,2591.5,2591.3,37.31543]
[1723783437635,0.06062138,2591.5,2591.3,37.31543]
[1723783438140,1.337,2591.8,2591.3,37.31543]
[1723783438340,0.06062138,2591.4,2591.3,37.31543]
[1723783438541,1.337,2591.8,2591.3,37.31543]
[1723783438786,0.06062138,2591.4,2591.3,37.31543]
[1723783439079,1.337,2591.8,2591.3,37.31543]
[1723783439281,0.06062138,2591.4,2591.3,37.31543]
[1723783439640,1.337,2591.8,2591.3,37.31543]
[1723783439875,0.06062138,2591.4,2591.3,39.63087]
[1723783440044,7.40320682,2592.0,2591.6,4.76887]
[1723783440238,0.21877536,2591.9,2591.6,3.7907]
[1723783440441,3.70836694,2592.6,2591.8,38.7731]
[1723783440734,2.3066,2592.8,2591.8,38.7731]
[1723783440735,1.55567007,2592.5,2591.9,0.55]
[1723783441138,0.21868529,2592.4,2592.2,2.31457]
[1723783441339,0.21868529,2592.3,2592.2,2.31457]
[1723783441742,1.55568529,2592.3,2592.2,2.31457]
[1723783442387,1.55568529,2592.3,2592.0,2.31477]
[1723783442590,0.21868529,2592.2,2592.0,2.31477]
[1723783443076,2.3066,2592.4,2592.0,2.31477]
[1723783443259,0.21870232,2592.3,2592.0,2.31477]
[1723783443449,0.21870232,2592.2,2592.0,2.31474]
[1723783443648,2.3066,2592.4,2592.0,2.31474]
[1723783444161,0.21870171,2592.3,2592.0,2.31474]
[1723783444359,0.21870171,2592.2,2592.0,2.31474]
[1723783444674,2.3066,2592.4,2592.0,2.31474]
[1723783444881,1.55570008,2592.3,2592.0,2.31474]
[1723783445190,0.21870008,2592.2,2592.0,2.31474]
[1723783445389,1.337,2592.3,2592.0,2.31474]
[1723783445568,0.21870435,2592.2,2592.0,2.31474]
[1723783445781,1.337,2592.3,2592.0,2.31474]
[1723783445971,0.21870505,2592.2,2592.0,2.31474]
[1723783446175,1.337,2592.3,2592.0,2.31474]
[1723783446383,0.21870352,2592.2,2592.0,2.31474]
[1723783446582,1.337,2592.3,2592.0,2.31474]
[1723783446891,3.7072575,2593.1,2592.6,2.31421]
[1723783447099,0.2186288,2592.8,2592.6,2.31421]
[1723783447250,3.7072575,2593.1,2592.7,35.0]
[1723783447446,0.21862337,2593.0,2592.7,35.0]
[1723783447698,0.21862337,2592.9,2592.7,35.0]
[1723783447897,0.21862337,2592.8,2592.7,35.0]
[1723783448196,0.21861802,2592.8,2592.7,35.0]
[1723783449253,1.55561802,2592.8,2592.7,35.0]
[1723783449467,1.94141982,2592.8,2592.7,35.0]
[1723783449700,1.94141982,2592.8,2592.1,2.31469]
[1723783450009,1.337,2592.5,2592.2,2.31461]
[1723783450219,1.337,2592.5,2592.3,35.0]
[1723783450369,4.61647,2592.9,2592.3,35.0]
[1723783450370,3.6394,2592.9,2592.3,35.0]
[1723783450568,0.05943347,2592.4,2592.3,37.31447]
[1723783450814,3.6394,2592.9,2592.4,2.31438]
[1723783450972,0.21863299,2592.8,2592.4,2.31438]
[1723783451174,0.21863299,2592.7,2592.4,2.31438]
[1723783451374,1.337,2592.7,2592.3,37.31447]
[1723783453913,3.6394,2592.9,2592.5,2.31435]
[1723783454206,13.42356086,2593.3,2592.5,2.31435]
[1723783454207,1.337,2593.1,2592.5,2.31435]
[1723783454508,0.21862332,2593.0,2592.5,2.31435]
[1723783454708,0.21862332,2592.9,2592.5,2.31435]
[1723783455016,1.337,2593.1,2592.6,37.31427]
[1723783455202,0.21860044,2593.0,2592.6,37.31427]
[1723783455401,1.337,2593.1,2592.6,37.31427]
[1723783455598,1.337,2593.1,2592.7,2.31418]
[1723783456292,11.05387682,2593.3,2592.8,35.0]
[1723783456496,0.21858338,2593.2,2592.8,35.0]
[1723783456713,11.05387682,2593.3,2592.8,35.0]
[1723783456870,12.93294153,2593.3,2592.8,35.0]
[1723783457068,0.21856588,2593.2,2592.8,35.0]
[1723783457277,1.337,2593.3,2592.8,35.0]
[1723783458821,1.337,2593.3,2592.9,2.31399]
[1723783459408,1.337,2593.3,2593.0,35.0]
[1723783461189,0.21858349,2593.2,2593.0,35.0]
[1723783461420,1.337,2593.3,2593.0,35.0]
[1723783462290,0.21859252,2593.2,2593.0,35.0]
[1723783462493,3.65065,2593.3,2593.0,35.0]
[1723783462689,0.21859383,2593.2,2593.0,35.0]
[1723783462932,3.65065,2593.3,2593.0,35.0]
[1723783463123,1.337,2593.1,2593.0,35.0]
[1723783463450,1.55560122,2593.1,2592.5,2.31432]
[1723783463731,1.55560122,2593.1,2592.6,35.0]
[1723783463732,1.337,2593.1,2592.6,35.0]
[1723783463886,2.4093,2593.0,2592.6,35.0]
[1723783465036,0.05943662,2592.9,2592.6,35.0]
[1723783465735,0.05950297,2592.8,2592.6,35.0]
[1723783466089,3.60059662,2593.1,2592.6,35.0]
[1723783466430,0.21861851,2593.0,2592.6,35.0]
[1723783466722,1.55561851,2592.9,2592.6,35.0]
[1723783466930,0.21861851,2592.8,2592.6,35.0]
[1723783467095,0.27612446,2592.8,2592.6,35.0]
[1723783467288,0.21861851,2592.7,2592.6,35.0]
[1723783467489,0.05750595,2592.7,2592.6,35.0]
[1723783467734,0.21861851,2592.7,2592.6,35.0]
[1723783467904,0.27612446,2592.7,2592.6,35.0]
[1723783469930,0.27615303,2592.7,2592.6,35.0]
[1723783472645,0.27615303,2592.7,2592.3,2.31446]
[1723783472815,0.21864708,2592.6,2592.4,2.31443]
[1723783473017,0.21864708,2592.5,2592.4,2.31443]
[1723783473213,0.27615303,2592.5,2592.4,2.31443]
[1723783473618,0.27615303,2592.5,2592.4,37.31443]
[1723783474343,0.27615745,2592.5,2592.4,37.31443]
[1723783474842,0.27615745,2592.5,2592.4,35.0]
[1723783477345,0.27615745,2592.5,2592.4,39.69955]
[1723783477840,0.27612394,2592.5,2592.4,39.69955]
[1723783478229,0.05750595,2592.5,2592.4,39.69955]
[1723783478435,0.21862265,2592.9,2592.5,2.31432]
[1723783478651,0.2186197,2592.8,2592.5,2.31432]
[1723783478949,0.21861803,2592.7,2592.5,2.31432]
[1723783479148,0.21861803,2592.6,2592.5,2.31432]
[1723783479307,0.21861803,2592.6,2592.5,37.31432]
[1723783479840,0.27594706,2592.6,2592.5,37.31432]
[1723783482447,0.05732903,2592.6,2592.5,37.31432]
[1723783482748,0.21861405,2592.6,2592.5,37.31432]
[1723783483126,0.27596204,2592.6,2592.5,37.31432]
[1723783485623,0.21861405,2592.6,2592.5,39.62868]
[1723783485823,5.04349252,2593.2,2592.7,2.31412]
[1723783486028,0.21858445,2593.1,2592.7,4.62823]
[1723783486346,5.04349252,2593.2,2592.8,4.62968]
[1723783486347,0.21858445,2593.0,2592.8,4.62968]
[1723783486548,5.04349252,2593.2,2592.8,4.62968]
[1723783486549,0.21858445,2592.9,2592.8,4.62968]
[1723783486924,0.21858153,2592.9,2592.8,4.62968]
[1723783487120,0.21858153,2592.9,2592.8,2.31408]
[1723783490236,0.21858153,2592.9,2592.6,2.31421]
[1723783490436,0.21858153,2592.8,2592.6,2.31421]
[1723783490636,0.21858153,2592.7,2592.6,2.31421]
[1723783490837,1.337,2593.0,2592.7,2.31416]
[1723783491362,0.21860147,2592.9,2592.7,2.31416]
[1723783491562,1.337,2593.0,2592.7,2.31416]
[1723783491771,0.21859846,2592.9,2592.5,40.17992]
[1723783491976,1.55559846,2592.8,2592.5,37.86432]
[1723783492130,0.21859846,2592.7,2592.5,37.86432]
[1723783492462,0.21859846,2592.6,2592.5,37.31432]
[1723783492829,0.21861748,2592.6,2592.5,37.31432]
[1723783494974,0.27598759,2592.6,2592.5,2.31432]
[1723783495338,0.05737011,2592.6,2592.5,37.31432]
[1723783495569,0.27598394,2592.6,2592.5,37.31432]
[1723783495769,0.21861383,2592.6,2592.5,37.31432]
[1723783495979,0.27598394,2592.6,2592.5,37.31432]
[1723783497438,0.27598394,2592.6,2592.5,39.62868]
[1723783497681,0.27598394,2592.6,2592.5,40.17868]
[1723783498541,0.27598394,2592.6,2592.5,41.51946478]
[1723783498850,0.27598394,2592.6,2592.5,43.95805156]
[1723783499181,0.27598394,2592.6,2592.5,42.61728]
[1723783500169,0.27598394,2592.6,2592.5,43.95807478]
[1723783500372,0.27598394,2592.6,2592.5,42.61728]
[1723783500572,0.27598394,2592.6,2592.5,39.75292]
[1723783500901,0.27598394,2592.6,2592.5,39.78532]
[1723783501444,0.27598394,2592.6,2592.5,43.99046933]
[1723783501962,0.27598394,2592.6,2592.5,46.00160569]
[1723783502300,0.05737011,2592.6,2592.5,46.00160569]
[1723783502477,0.27594822,2592.6,2592.5,46.00160531]
[1723783502691,1.337,2592.9,2592.6,2.31427]
[1723783502855,0.21859519,2592.8,2592.6,2.31427]
[1723783503195,0.21859519,2592.7,2592.6,2.31427]
[1723783503493,0.21859519,2592.7,2592.6,6.96614]
[1723783503691,0.21859519,2592.7,2592.6,8.30688266]
[1723783504051,5.04332791,2593.3,2592.9,2.31395]
[1723783504253,0.21855562,2593.2,2592.9,2.31395]
[1723783504565,0.21855562,2593.1,2592.9,4.62789]
[1723783504751,0.21855562,2593.0,2592.9,4.62789]
[1723783506562,12.70503314,2593.4,2592.9,4.62789]
[1723783506795,1.337,2593.2,2593.0,2.31391]
[1723783507098,0.21856372,2593.1,2593.0,2.31391]
[1723783507787,0.21856372,2593.1,2593.0,4.70311]
[1723783509994,0.27601912,2593.1,2593.0,4.70311]
[1723783510566,0.27600535,2593.1,2593.0,2.31391]
[1723783510768,0.27600535,2593.1,2593.0,37.31391]
[1723783514935,0.27600535,2593.1,2593.0,35.0]
[1723783515271,0.0574554,2593.1,2593.0,35.0]
[1723783515488,0.21856866,2593.1,2593.0,37.31392]
[1723783515686,0.27609988,2593.1,2593.0,37.31392]
[1723783516824,0.27609988,2593.1,2593.0,43.25124]
[1723783517118,7.40320682,2593.8,2593.5,2.31344]
[1723783517324,0.21844356,2593.7,2593.6,2.31338]
[1723783517545,0.27596529,2593.7,2593.6,2.31338]
[1723783518803,0.27596529,2593.7,2593.6,5.17676]
[1723783520300,0.05752173,2593.7,2593.6,7.54836]
[1723783520497,7.40320682,2594.2,2593.8,2.31319]
[1723783520726,7.40320682,2594.2,2593.9,35.0]
[1723783520727,0.21841257,2594.1,2593.9,35.0]
[1723783520931,0.21841257,2594.0,2593.9,35.0]
[1723783521100,7.40320682,2594.2,2593.9,35.0]
[1723783521101,0.21841257,2594.1,2593.9,35.0]
[1723783521310,0.21841257,2594.0,2593.9,35.0]
[1723783521532,0.21841257,2594.1,2593.9,35.0]
[1723783521733,0.21841257,2594.0,2593.9,35.0]
[1723783522240,0.21841257,2594.1,2593.9,35.0]
[1723783523316,0.21841257,2594.0,2593.9,35.0]
[1723783524006,0.21841257,2594.2,2593.9,35.0]
[1723783524207,0.21841257,2594.1,2593.9,35.0]
[1723783524541,3.70609639,2594.7,2594.3,2.31268]
[1723783524747,0.2183336,2594.6,2594.5,2.31258]
[1723783525068,0.05158636,2594.6,2594.5,4.62516]
[1723783525277,2.3552,2595.2,2594.5,40.35978]
[1723783525424,0.21824368,2595.1,2594.7,2.31239]
[1723783525617,2.3552,2595.2,2594.9,2.31216]
[1723783525819,0.2182437,2595.1,2594.9,2.31216]
[1723783526030,2.3552,2595.2,2595.0,35.0]
[1723783526336,0.21825681,2595.1,2595.0,35.0]
[1723783526911,2.3552,2595.2,2595.0,35.0]
[1723783527115,0.21826117,2595.1,2595.0,35.0]
[1723783527315,2.3552,2595.2,2595.0,35.0]
[1723783529458,2.3118,2595.4,2595.0,35.0]
[1723783529667,1.55525356,2595.3,2595.0,35.0]
[1723783529818,1.337,2595.3,2595.0,35.0]
[1723783530158,1.337,2595.3,2594.7,4.64009]
[1723783530532,1.337,2595.3,2594.8,35.0]
[1723783531232,3.7841,2595.3,2594.8,35.0]
[1723783531429,2.4471,2595.3,2594.9,2.31216]
[1723783531635,2.4471,2595.5,2594.9,2.31216]
[1723783532171,2.4471,2595.5,2595.0,37.31213]
[1723783532879,2.4471,2595.5,2595.0,35.0]
[1723783535131,2.4471,2595.5,2595.0,37.31213]
[1723783535563,2.4471,2595.5,2595.0,35.0]
[1723783536229,0.04873872,2595.4,2595.0,35.0]
[1723783536430,2.4471,2595.5,2595.0,35.0]
[1723783536634,0.04873872,2595.3,2595.0,35.0]
[1723783536877,2.4471,2595.5,2595.0,35.0]
[1723783537087,0.04873872,2595.2,2595.0,35.0]
[1723783537385,1.337,2595.4,2594.7,4.64007]
[1723783537531,3.6488,2595.4,2594.7,4.64007]
[1723783537878,0.04877656,2595.3,2594.8,35.0]
[1723783539146,0.04877656,2595.3,2594.9,2.31222]
[1723783539868,0.04877656,2595.3,2595.0,35.0]
[1723783543471,6.09582,2595.5,2595.0,35.0]
[1723783543772,0.04877656,2595.2,2595.0,35.0]
[1723783544003,6.09582,2595.5,2595.0,35.0]
[1723783544205,0.04873871,2595.1,2595.0,35.0]
[1723783544370,6.09582,2595.5,2595.0,35.0]
[1723783544570,0.04873871,2595.1,2595.0,35.0]
[1723783544771,6.09582,2595.5,2595.0,35.0]
[1723783544971,0.04873871,2595.1,2595.0,35.0]
[1723783545172,2.4471,2595.5,2595.0,37.31205]
[1723783545375,0.04873871,2595.1,2595.0,37.31205]
[1723783545610,3.7841,2595.5,2595.0,37.31205]
[1723783546028,0.04874817,2595.4,2595.0,37.31205]
[1723783546403,0.04874817,2595.4,2595.1,2.31202]
[1723783546713,0.04874817,2595.4,2595.3,3.64887]
[1723783546912,7.52903372,2595.7,2595.4,2.31171]
[1723783547110,7.52903372,2595.7,2595.3,38.64887]
[1723783547111,0.04875447,2595.4,2595.3,38.64887]
[1723783547411,7.52903372,2595.7,2595.4,2.31173]
[1723783548521,0.21816625,2595.6,2595.3,37.31184]
[1723783548828,7.52903372,2595.7,2595.3,37.31184]
[1723783549118,7.52903372,2595.7,2595.4,2.31177]
[1723783549324,7.52903372,2595.7,2595.6,2.3116]
[1723783549495,0.1258269,2595.7,2595.6,4.6147]
[1723783551435,0.34395881,2595.7,2595.4,2.31171]
[1723783551738,0.21815704,2595.6,2595.4,2.31171]
[1723783551942,0.1258269,2595.7,2595.3,39.61493]
[1723783552230,0.21814736,2595.6,2595.3,39.62362]
[1723783552390,0.21815012,2595.5,2595.3,39.62362]
[1723783552587,0.1258269,2595.7,2595.3,39.62362]
[1723783552804,0.21815018,2595.6,2595.4,2.31177]
[1723783553002,0.1258269,2595.7,2595.4,2.31177]
[1723783553199,0.21815126,2595.6,2595.4,2.31177]
[1723783553404,0.21815126,2595.5,2595.4,2.31177]
[1723783554131,0.21815126,2595.5,2595.3,37.31179]